fUSD/lending_fUSD_20260107
["ID","MTS","AMOUNT","RATE_DAILY","PERIOD"]
[400655587,1767769847903,-150.0,0.00031755,2]
[400655588,1767769847912,-150.0,0.00031755,2]
[400655589,1767769847922,-1330.0,0.00031755,2]
[400655590,1767769847931,-614.0,0.00031755,2]
[400655591,1767769847940,-3467.0,0.00031755,2]
[400655592,1767769847949,-1405.0,0.00031755,2]
[400655593,1767769847958,-1266.0,0.00031755,2]
[400655594,1767769847967,-505.0,0.00031755,2]
[400655595,1767769847977,-500.0,0.0003187,30]
[400655596,1767769847986,-500.0,0.0003187,5]
[400655597,1767769847996,-349.83087352,0.0003187,30]
[400655598,1767769848005,-224.0,0.00031966,2]
[400655599,1767769848014,-224.0,0.00032254,2]
[400655600,1767769848024,-3641.58263655,0.00032266,2]
[400655601,1767769848032,-224.0,0.00032347,2]
[400655602,1767769848042,-1903.1,0.00032689,3]
[400655603,1767769848051,-208.0,0.0003286,30]
[400655604,1767769848061,-158.25601146,0.00032874,2]
[400655605,1767769848070,-5000.0,0.00032876,30]
[400655606,1767769848079,-173.46,0.000329,14]
[400655607,1767769848088,-1140.13,0.000329,2]
[400655608,1767769848098,-482.63,0.00032932,2]
[400655609,1767769848107,-482.63,0.00032932,2]
[400655610,1767769848116,-482.63,0.00032932,2]
[400655611,1767769848126,-482.63,0.00032932,2]
[400655612,1767769848135,-482.63,0.00032932,2]
[400655613,1767769848144,-482.63,0.00032932,2]
[400655614,1767769848154,-482.63,0.00032932,2]
[400655615,1767769848163,-168.5,0.00033,14]
[400655616,1767769848172,-150.0,0.00033,14]
[400655617,1767769848182,-501.0,0.0003359,6]
[400655618,1767769848193,-914.0,0.00033659,2]
[400655619,1767769848204,-1201.0,0.00033659,2]
[400655620,1767769848213,-2436.0,0.00033659,2]
[400655621,1767769848223,-4818.0,0.00033659,2]
[400655622,1767769848232,-6551.0,0.00033659,2]
[400655623,1767769848246,-500.0,0.00033873,120]
[400655624,1767769848255,-482.63,0.0003389,2]
[400655625,1767769848266,-482.63,0.0003389,2]
[400655626,1767769848275,-163.18445164,0.00033921,2]
[400655627,1767769848284,-200.0,0.00034,120]
[400655628,1767769848294,-1354.4,0.0003407,3]
[400655629,1767769848303,-301.42,0.0003413,2]
[400655630,1767769848312,-244.18,0.0003413,2]
[400655631,1767769848320,-153.97,0.0003413,2]
[400655632,1767769848329,-323.63,0.0003413,2]
[400655633,1767769848338,-151.83,0.0003413,2]
[400655634,1767769848348,-171.3,0.0003413,2]
[400655635,1767769848357,-171.3,0.0003413,2]
[400655636,1767769848368,-171.3,0.0003413,2]
[400655637,1767769848378,-251.49997666,0.00034232,2]
[400655638,1767769848388,-17981.97892723,0.0003429,7]
[400655639,1767769848398,-1140.13,0.000343,2]
[400655640,1767769848407,-308.84,0.00034438,2]
[400655641,1767769848416,-150.0,0.00034521,30]
[400655642,1767769848425,-1354.4,0.00034573,3]
[400655643,1767769848436,-173.84541139,0.00034599,2]
[400655644,1767769848445,-844.26,0.000346,2]
[400655645,1767769848456,-150.0,0.00034755,2]
[400655646,1767769848465,-150.0,0.00034755,2]
[400655647,1767769848474,-1330.0,0.00034755,2]
[400655648,1767769848484,-614.0,0.00034755,2]
[400655649,1767769848493,-3467.0,0.00034755,2]
[400655650,1767769848502,-1405.0,0.00034755,2]
[400655651,1767769848511,-1266.0,0.00034755,2]
[400655652,1767769848521,-505.0,0.00034755,2]
[400655653,1767769848530,-173.46,0.000348,14]
[400655654,1767769848540,-3641.58263655,0.0003481,2]
[400655655,1767769848551,-1903.1,0.00034853,4]
[400655656,1767769848561,-208.0,0.0003488,30]
[400655657,1767769848570,-179.04,0.00034952,2]
[400655658,1767769848579,-171.3,0.00034952,2]
[400655659,1767769848588,-179.04,0.00034952,2]
[400655660,1767769848599,-179.04,0.00034952,2]
[400655661,1767769848607,-171.3,0.00034952,2]
[400655662,1767769848616,-556.08,0.00034952,2]
[400655663,1767769848625,-179.04,0.00034952,2]
[400655664,1767769848635,-171.3,0.00034952,2]
[400655665,1767769848643,-358.03,0.00034952,2]
[400655666,1767769848653,-171.3,0.00034952,2]
[400655667,1767769848662,-556.08,0.00034952,2]
[400655668,1767769848671,-556.08,0.00034952,2]
[400655669,1767769848681,-179.04,0.00034952,2]
[400655670,1767769848690,-171.3,0.00034952,2]
[400655671,1767769848699,-179.04,0.00034952,2]
[400655672,1767769848709,-171.3,0.00034952,2]
[400655673,1767769848718,-179.04,0.00034952,2]
[400655674,1767769848728,-556.08,0.00034952,2]
[400655675,1767769848737,-171.3,0.00034952,2]
[400655676,1767769848746,-171.3,0.00034952,2]
[400655677,1767769848756,-556.08,0.00034952,2]
[400655678,1767769848765,-357.98,0.00034952,2]
[400655679,1767769848774,-556.08,0.00034952,2]
[400655680,1767769848783,-171.3,0.00034952,2]
[400655681,1767769848792,-357.98,0.00034952,2]
[400655682,1767769848801,-556.08,0.00034952,2]
[400655683,1767769848810,-556.08,0.00034952,2]
[400655684,1767769848819,-171.3,0.00034952,2]
[400655685,1767769848828,-556.08,0.00034952,2]
[400655686,1767769848837,-179.04,0.00034952,2]
[400655687,1767769848847,-556.08,0.00034952,2]
[400655688,1767769848856,-171.3,0.00034952,2]
[400655689,1767769848865,-556.08,0.00034952,2]
[400655690,1767769848874,-179.04,0.00034952,2]
[400655691,1767769848884,-556.08,0.00034952,2]
[400655692,1767769848893,-167.9,0.00034952,2]
[400655693,1767769848903,-556.08,0.00034952,2]
[400655694,1767769848912,-179.04,0.00034952,2]
[400655695,1767769848920,-556.08,0.00034952,2]
[400655696,1767769848929,-556.08,0.00034952,2]
[400655697,1767769848939,-179.04,0.00034952,2]
[400655698,1767769848948,-556.08,0.00034952,2]
[400655699,1767769848957,-179.04,0.00034952,2]
[400655700,1767769848967,-556.08,0.00034952,2]
[400655701,1767769848975,-556.08,0.00034952,2]
[400655702,1767769848997,-556.08,0.00034952,2]
[400655703,1767769849008,-179.04,0.00034952,2]
[400655704,1767769849018,-556.08,0.00034952,2]
[400655705,1767769849028,-179.04,0.00034952,2]
[400655706,1767769849039,-170.02,0.00034952,2]
[400655707,1767769849048,-556.08,0.00034952,2]
[400655708,1767769849057,-178.77,0.00034988,2]
[400655709,1767769849068,-207.90516,0.00035,10]
[400655710,1767769849078,-1354.4,0.00035077,4]
[400655711,1767769849088,-151.0,0.0003526,31]
[400655712,1767769849098,-1140.13,0.000353,2]
[400655713,1767769849107,-168.0,0.00035317,2]
[400655714,1767769849117,-167.8709529,0.00035319,2]
[400655715,1767769849127,-168.0,0.00035351,2]
[400655716,1767769849136,-844.26,0.000354,2]
[400655717,1767769849146,-501.0,0.00035446,8]
[400655718,1767769849156,-152.0,0.00035512,3]
[400655719,1767769849165,-1354.4,0.0003558,4]
[400655720,1767769849175,-526.5,0.00035616,32]
[400655721,1767769849185,-506.1,0.00035616,23]
[400655722,1767769849196,-477.0,0.00035616,41]
[400655723,1767769849205,-477.6,0.00035616,44]
[400655724,1767769849215,-487.24377695,0.00035616,67]
[400655725,1767769849224,-489.0,0.00035616,24]
[400655726,1767769849235,-636.3,0.00035616,37]
[400655727,1767769849244,-480.85783801,0.00035616,75]
[400655728,1767769849254,-473.1,0.00035616,37]
[400655729,1767769849263,-456.6,0.00035616,25]
[400655730,1767769849274,-671.4,0.00035616,23]
[400655731,1767769849284,-151.0,0.00035616,31]
[400655732,1767769849293,-701.4,0.00035616,15]
[400655733,1767769849303,-249.50466779,0.00035616,7]
[400655734,1767769849312,-556.08,0.00035774,2]
[400655735,1767769849321,-178.06,0.00035774,2]
[400655736,1767769849331,-556.08,0.00035774,2]
[400655737,1767769849340,-556.08,0.00035774,2]
[400655738,1767769849349,-1021.22,0.00035774,2]
[400655739,1767769849362,-151.0,0.00035774,31]
[400655740,1767769849371,-214.800707,0.00035774,31]
[400655741,1767769849381,-179.789439,0.00035774,31]
[400655742,1767769849390,-179.789439,0.00035774,31]
[400655743,1767769849399,-179.789439,0.00035774,31]
[400655744,1767769849409,-179.789439,0.00035774,31]
[400655745,1767769849418,-151.0,0.00035774,31]
[400655746,1767769849427,-151.0,0.00035774,31]
[400655747,1767769849437,-151.0,0.00035774,31]
[400655748,1767769849447,-151.0,0.00035774,31]
[400655749,1767769849456,-200.0,0.00036,120]
[400655750,1767769849466,-510.04,0.00036049,30]
[400655751,1767769849476,-1354.4,0.00036084,4]
[400655752,1767769849486,-168.0,0.00036085,2]
[400655753,1767769849496,-1140.13,0.000361,2]
[400655754,1767769849505,-844.26,0.000361,2]
[400655755,1767769849515,-168.0,0.00036451,2]
[400655756,1767769849524,-1000.0,0.00036459,7]
[400655757,1767769849534,-1354.4,0.00036587,4]
[400655758,1767769849543,-914.0,0.00036659,2]
[400655759,1767769849552,-1201.0,0.00036659,2]
[400655760,1767769849562,-2436.0,0.00036659,2]
[400655761,1767769849571,-4818.0,0.00036659,2]
[400655762,1767769849581,-6551.0,0.00036659,2]
[400655763,1767769849590,-168.0,0.0003673,2]
[400655764,1767769849600,-208.0,0.0003689,30]
[400655765,1767769849610,-844.26,0.000369,2]
[400655766,1767769849619,-200.0,0.00037,14]
[400655767,1767769849629,-1903.1,0.00037017,5]
[400655768,1767769849639,-1354.4,0.00037091,5]
[400655769,1767769849648,-300.0,0.00037209,2]
[400655770,1767769849658,-300.0,0.00037257,2]
[400655771,1767769849668,-300.0,0.00037299,2]
[400655772,1767769849677,-501.0,0.00037302,10]
[400655773,1767769849687,-300.0,0.00037344,2]
[400655774,1767769849697,-3641.58263655,0.00037355,2]
[400655775,1767769849707,-300.0,0.00037367,2]
[400655776,1767769849716,-466.43,0.00037411,2]
[400655777,1767769849726,-466.43,0.00037411,2]
[400655778,1767769849739,-466.43,0.00037411,2]
[400655779,1767769849749,-466.43,0.00037411,2]
[400655780,1767769849759,-466.43,0.00037411,2]
[400655781,1767769849769,-300.0,0.00037437,2]
[400655782,1767769849778,-300.0,0.00037479,2]
[400655783,1767769849788,-300.0,0.00037481,2]
[400655784,1767769849797,-300.0,0.00037492,2]
[400655785,1767769849807,-300.0,0.00037543,2]
[400655786,1767769849817,-300.0,0.00037553,2]
[400655787,1767769849827,-1354.4,0.00037594,5]
[400655788,1767769849837,-300.0,0.00037611,2]
[400655789,1767769849846,-300.0,0.00037654,2]
[400655790,1767769849856,-300.0,0.0003767,2]
[400655791,1767769849865,-300.0,0.00037686,2]
[400655792,1767769849875,-4675.5474,0.00037699,2]
[400655793,1767769849885,-300.0,0.00037745,2]
[400655794,1767769849894,-1330.0,0.00037755,2]
[400655795,1767769849904,-614.0,0.00037755,2]
[400655796,1767769849914,-3467.0,0.00037755,2]
[400655797,1767769849925,-1405.0,0.00037755,2]
[400655798,1767769849939,-1266.0,0.00037755,2]
[400655799,1767769849948,-505.0,0.00037755,2]
[400655800,1767769849958,-300.0,0.00037779,2]
[400655801,1767769849968,-392.96,0.000378,30]
[400655802,1767769849978,-300.0,0.00037814,2]
[400655803,1767769849988,-9181.95729875,0.00037816,2]
[400655804,1767769850004,-300.0,0.00037849,2]
[400655805,1767769850015,-151.0,0.00037866,31]
[400655806,1767769850025,-151.0,0.00037866,31]
[400655807,1767769850035,-281.089907,0.00037866,31]
[400655808,1767769850050,-151.0,0.00037866,31]
[400655809,1767769850071,-151.0,0.00037866,31]
[400655810,1767769850088,-261.24858,0.00037866,31]
[400655811,1767769850098,-591.872125,0.00037866,31]
[400655812,1767769850109,-591.872125,0.00037866,31]
[400655813,1767769850119,-591.872125,0.00037866,31]
[400655814,1767769850129,-591.872125,0.00037866,31]
[400655815,1767769850139,-929.449749,0.00037866,31]
[400655816,1767769850152,-929.449749,0.00037866,31]
[400655817,1767769850162,-929.449749,0.00037866,31]
[400655818,1767769850175,-929.449749,0.00037866,31]
[400655819,1767769850185,-300.0,0.00037871,2]
[400655820,1767769850197,-300.0,0.00037878,2]
[400655821,1767769850206,-152.0,0.00037891,4]
[400655822,1767769850217,-300.0,0.00037895,2]
[400655823,1767769850227,-844.26,0.000379,2]
[400655824,1767769850238,-300.0,0.00037924,2]
[400655825,1767769850250,-300.0,0.00037925,2]
[400655826,1767769850259,-374.02,0.00037928,2]
[400655827,1767769850271,-300.0,0.00037955,2]
[400655828,1767769850284,-300.0,0.00037957,2]
[400655829,1767769850295,-300.0,0.00037957,2]
[400655830,1767769850307,-300.0,0.00037984,2]
[400655831,1767769850316,-300.0,0.00037994,2]
[400655832,1767769850327,-200.0,0.00038,120]
[400655833,1767769850337,-300.0,0.00038,2]
[400655834,1767769850348,-300.0,0.00038046,2]
[400655835,1767769850359,-300.0,0.00038052,2]
[400655836,1767769850375,-300.0,0.00038071,2]
[400655837,1767769850387,-300.0,0.0003808,2]
[400655838,1767769850398,-1354.4,0.00038098,5]
[400655839,1767769850409,-320.0,0.000381,30]
[400655840,1767769850419,-300.0,0.0003811,2]
[400655841,1767769850431,-300.0,0.0003811,2]
[400655842,1767769850443,-300.0,0.00038134,2]
[400655843,1767769850453,-300.0,0.00038154,2]
[400655844,1767769850464,-300.0,0.00038165,2]
[400655845,1767769850702,-300.0,0.00038176,2]
[400655846,1767769850714,-300.0,0.00038212,2]
[400655847,1767769850723,-1026.27313816,0.0003822,20]
[400655848,1767769850734,-1129.46767376,0.0003822,20]
[400655849,1767769850743,-1087.1186758,0.0003822,20]
[400655850,1767769850755,-1097.47306159,0.0003822,20]
[400655851,1767769850765,-1131.06831998,0.0003822,20]
[400655852,1767769850774,-1089.80167562,0.0003822,20]
[400655853,1767769850787,-1035.20480315,0.0003822,20]
[400655854,1767769850799,-1072.87292261,0.0003822,20]
[400655855,1767769850808,-1044.00276209,0.0003822,20]
[400655856,1767769850818,-1023.40581979,0.0003822,20]
[400655857,1767769850827,-1097.0389817,0.0003822,20]
[400655858,1767769850837,-1137.86526346,0.0003822,20]
[400655859,1767769850846,-1037.53129777,0.0003822,20]
[400655860,1767769850855,-1051.20365604,0.0003822,20]
[400655861,1767769850864,-1038.28660973,0.0003822,20]
[400655862,1767769850874,-1058.67774403,0.0003822,20]
[400655863,1767769850889,-1068.87321914,0.0003822,20]
[400655864,1767769850904,-1119.50267365,0.0003822,20]
[400655865,1767769850914,-1036.82073574,0.0003822,20]
[400655866,1767769850925,-1054.63456055,0.0003822,20]
[400655867,1767769850935,-1139.50135124,0.0003822,20]
[400655868,1767769850945,-1104.36819941,0.0003822,20]
[400655869,1767769850955,-1046.95343553,0.0003822,20]
[400655870,1767769850965,-1025.33163738,0.0003822,20]
[400655871,1767769850977,-1057.30889926,0.0003822,20]
[400655872,1767769850987,-1110.03407978,0.0003822,20]
[400655873,1767769850997,-1062.94045052,0.0003822,20]
[400655874,1767769851008,-1140.27786834,0.0003822,20]
[400655875,1767769851019,-1365.81586233,0.0003822,20]
[400655876,1767769851029,-300.0,0.00038227,2]
[400655877,1767769851039,-466.43,0.00038233,2]
[400655878,1767769851049,-466.43,0.00038233,2]
[400655879,1767769851059,-466.43,0.00038233,2]
[400655880,1767769851069,-466.43,0.00038233,2]
[400655881,1767769851079,-466.43,0.00038233,2]
[400655882,1767769851089,-466.43,0.00038233,2]
[400655883,1767769851098,-466.43,0.00038233,2]
[400655884,1767769851108,-466.43,0.00038233,2]
[400655885,1767769851118,-466.43,0.00038233,2]
[400655886,1767769851129,-932.71,0.00038233,2]
[400655887,1767769851139,-481.12,0.00038233,2]
[400655888,1767769851149,-466.43,0.00038233,2]
[400655889,1767769851159,-466.43,0.00038233,2]
[400655890,1767769851168,-466.43,0.00038233,2]
[400655891,1767769851178,-466.43,0.00038233,2]
[400655892,1767769851189,-466.43,0.00038233,2]
[400655893,1767769851203,-466.43,0.00038233,2]
[400655894,1767769851212,-466.43,0.00038233,2]
[400655895,1767769851223,-466.59,0.00038233,2]
[400655896,1767769851234,-300.0,0.00038273,2]
[400655897,1767769851244,-300.0,0.00038282,2]
[400655898,1767769851254,-300.0,0.00038283,2]
[400655899,1767769851264,-300.0,0.00038303,2]
[400655900,1767769851275,-300.0,0.00038304,2]
[400655901,1767769851285,-300.0,0.00038318,2]
[400655902,1767769851295,-300.0,0.00038319,2]
[400655903,1767769851304,-300.0,0.00038327,2]
[400655904,1767769851314,-300.0,0.00038332,2]
[400655905,1767769851326,-300.0,0.00038339,2]
[400655906,1767769851336,-300.0,0.00038346,2]
[400655907,1767769851346,-300.0,0.00038351,2]
[400655908,1767769851357,-300.0,0.00038352,2]
[400655909,1767769851367,-300.0,0.00038372,2]
[400655910,1767769851377,-300.0,0.00038389,2]
[400655911,1767769851387,-300.0,0.00038391,2]
[400655912,1767769851397,-300.0,0.00038399,2]
[400655913,1767769851406,-541.02569944,0.000384,2]
[400655914,1767769851416,-151.0,0.000384,120]
[400655915,1767769851425,-151.0,0.000384,120]
[400655916,1767769851435,-284.278556,0.000384,120]
[400655917,1767769851450,-151.0,0.000384,120]
[400655918,1767769851461,-151.0,0.000384,120]
[400655919,1767769851472,-189.587143,0.000384,7]
[400655920,1767769851482,-189.587143,0.000384,7]
[400655921,1767769851492,-189.587143,0.000384,7]
[400655922,1767769851503,-189.587143,0.000384,7]
[400655923,1767769851513,-300.0,0.00038432,2]
[400655924,1767769851523,-300.0,0.00038447,2]
[400655925,1767769851534,-301.69297759,0.00038463,7]
[400655926,1767769851544,-300.0,0.00038473,2]
[400655927,1767769851557,-300.0,0.00038484,2]
[400655928,1767769851567,-300.0,0.0003849,2]
[400655929,1767769851577,-300.0,0.00038501,2]
[400655930,1767769851587,-300.0,0.00038507,2]
[400655931,1767769851597,-300.0,0.00038523,2]
[400655932,1767769851607,-300.0,0.00038526,2]
[400655933,1767769851618,-300.0,0.00038537,2]
[400655934,1767769851629,-300.0,0.00038543,2]
[400655935,1767769851640,-300.0,0.00038547,2]
[400655936,1767769851652,-300.0,0.00038581,2]
[400655937,1767769851662,-300.0,0.00038582,2]
[400655938,1767769851674,-300.0,0.00038583,2]
[400655939,1767769851684,-300.0,0.00038592,2]
[400655940,1767769851695,-300.0,0.00038594,2]
[400655941,1767769851705,-1354.4,0.00038601,5]
[400655942,1767769851715,-300.0,0.00038634,2]
[400655943,1767769851727,-300.0,0.00038639,2]
[400655944,1767769851738,-300.0,0.00038662,2]
[400655945,1767769851749,-300.0,0.00038676,2]
[400655946,1767769851761,-300.0,0.00038677,2]
[400655947,1767769851772,-1140.13,0.000387,30]
[400655948,1767769851782,-300.0,0.00038702,2]
[400655949,1767769851791,-300.0,0.00038754,2]
[400655950,1767769851802,-300.0,0.00038755,2]
[400655951,1767769851812,-300.0,0.00038758,2]
[400655952,1767769851825,-300.0,0.00038773,2]
[400655953,1767769851836,-251.49997666,0.00038799,2]
[400655954,1767769851846,-500.0,0.000388,120]
[400655955,1767769851856,-300.0,0.00038813,2]
[400655956,1767769851866,-300.0,0.0003882,2]
[400655957,1767769851877,-300.0,0.00038833,2]
[400655958,1767769851887,-300.0,0.00038839,2]
[400655959,1767769851898,-300.0,0.00038896,2]
[400655960,1767769851910,-300.0,0.00038899,2]
[400655961,1767769851921,-500.0,0.000389,120]
[400655962,1767769851932,-187.52,0.000389,39]
[400655963,1767769851944,-4245.18931576,0.000389,2]
[400655964,1767769851954,-621.00502664,0.000389,2]
[400655965,1767769851966,-208.0,0.0003891,30]
[400655966,1767769851976,-300.0,0.00038913,2]
[400655967,1767769851987,-300.0,0.00038917,2]
[400655968,1767769851997,-300.0,0.00038918,2]
[400655969,1767769852009,-300.0,0.00038929,2]
[400655970,1767769852020,-300.0,0.00038935,2]
[400655971,1767769852031,-300.0,0.0003895,2]
[400655972,1767769852042,-300.0,0.00038952,2]
[400655973,1767769852053,-173.84541139,0.00038969,2]
[400655974,1767769852064,-300.0,0.00038981,2]
[400655975,1767769852074,-500.0,0.00038989,120]
[400655976,1767769852084,-500.0,0.00038999,120]
[400655977,1767769852094,-500.0,0.00038999,120]
[400655978,1767769852106,-300.0,0.00038999,10]
[400655979,1767769852116,-692.04354688,0.00038999,30]
[400655980,1767769852127,-318212.55630207,0.00039,120]
[400655981,1767769852138,-1017.34674958,0.00039,14]
[400655982,1767769852148,-500.0,0.00039,120]
[400655983,1767769852161,-175.6,0.00039,14]
[400655984,1767769852171,-3000.0,0.00039,30]
[400655985,1767769852182,-500.0,0.00039,120]
[400655986,1767769852193,-151.0,0.00039,120]
[400655987,1767769852206,-179.789439,0.00039,120]
[400655988,1767769852217,-179.789439,0.00039,120]
[400655989,1767769852227,-179.789439,0.00039,120]
[400655990,1767769852239,-179.789439,0.00039,120]
[400655991,1767769852250,-151.0,0.00039,120]
[400655992,1767769852260,-151.0,0.00039,120]
[400655993,1767769852272,-151.0,0.00039,120]
[400655994,1767769852281,-180.939791,0.00039,120]
[400655995,1767769852291,-151.0,0.00039,120]
[400655996,1767769852301,-151.0,0.00039,120]
[400655997,1767769852312,-150.0,0.00039,19]
[400655998,1767769852323,-150.0,0.00039,19]
[400655999,1767769852333,-658.245968,0.00039,120]
[400656000,1767769852343,-173.76277,0.00039,120]
[400656001,1767769852353,-658.245968,0.00039,120]
[400656002,1767769852363,-1070.624539,0.00039,120]
[400656003,1767769852372,-658.245968,0.00039,120]
[400656004,1767769852382,-1070.624539,0.00039,120]
[400656005,1767769852392,-658.245968,0.00039,120]
[400656006,1767769852403,-1070.624539,0.00039,120]
[400656007,1767769852412,-151.0,0.00039,120]
[400656008,1767769852422,-1070.624539,0.00039,120]
[400656009,1767769852432,-1948.565341,0.00039,28]
[400656010,1767769852442,-1948.565341,0.00039,28]
[400656011,1767769852452,-1948.565341,0.00039,28]
[400656012,1767769852462,-1948.565341,0.00039,28]
[400656013,1767769852472,-181.958378,0.00039,120]
[400656014,1767769852482,-178.256754,0.00039,120]
[400656015,1767769852492,-181.958378,0.00039,120]
[400656016,1767769852502,-178.256754,0.00039,120]
[400656017,1767769852512,-181.958378,0.00039,120]
[400656018,1767769852521,-178.256754,0.00039,120]
[400656019,1767769852532,-181.958378,0.00039,120]
[400656020,1767769852543,-178.256754,0.00039,120]
[400656021,1767769852553,-1378.924321,0.00039,120]
[400656022,1767769852563,-1378.924321,0.00039,120]
[400656023,1767769852573,-703.048742,0.00039,120]
[400656024,1767769852583,-1378.924321,0.00039,120]
[400656025,1767769852593,-703.048742,0.00039,120]
[400656026,1767769852603,-1378.924321,0.00039,120]
[400656027,1767769852613,-157.892488,0.00039,120]
[400656028,1767769852623,-703.048742,0.00039,120]
[400656029,1767769852633,-703.048742,0.00039,120]
[400656030,1767769852643,-157.892488,0.00039,120]
[400656031,1767769852653,-157.892488,0.00039,120]
[400656032,1767769852663,-157.892488,0.00039,120]
[400656033,1767769852673,-471.891525,0.00039,120]
[400656034,1767769852683,-471.891525,0.00039,120]
[400656035,1767769852692,-471.891525,0.00039,120]
[400656036,1767769852702,-471.891525,0.00039,120]
[400656037,1767769852712,-995.494573,0.00039,120]
[400656038,1767769852722,-995.494573,0.00039,120]
[400656039,1767769852732,-995.494573,0.00039,120]
[400656040,1767769852742,-995.494573,0.00039,120]
[400656041,1767769852752,-151.0,0.00039,120]
[400656042,1767769852764,-151.0,0.00039,120]
[400656043,1767769852774,-151.0,0.00039,120]
[400656044,1767769852784,-150.0,0.00039,2]
[400656045,1767769852794,-200.0,0.00039,17]
[400656046,1767769852803,-164.602406,0.00039,120]
[400656047,1767769852813,-164.602406,0.00039,120]
[400656048,1767769852823,-164.602406,0.00039,120]
[400656049,1767769852833,-164.602406,0.00039,120]
[400656050,1767769852843,-551.561254,0.00039,120]
[400656051,1767769852853,-551.561254,0.00039,120]
[400656052,1767769852862,-1737.735026,0.00039,120]
[400656053,1767769852872,-551.561254,0.00039,120]
[400656054,1767769852881,-1737.735026,0.00039,120]
[400656055,1767769852892,-551.561254,0.00039,120]
[400656056,1767769852901,-1737.735026,0.00039,120]
[400656057,1767769852910,-1737.735026,0.00039,120]
[400656058,1767769852920,-420.77578,0.00039,120]
[400656059,1767769852931,-242.109031,0.00039,120]
[400656060,1767769852942,-420.77578,0.00039,120]
[400656061,1767769852953,-242.109031,0.00039,120]
[400656062,1767769852964,-420.77578,0.00039,120]
[400656063,1767769853369,-242.109031,0.00039,120]
[400656064,1767769853379,-890.463938,0.00039,120]
[400656065,1767769853392,-420.77578,0.00039,120]
[400656066,1767769853407,-242.109031,0.00039,120]
[400656067,1767769853422,-289.06162,0.00039,120]
[400656068,1767769853443,-890.463938,0.00039,120]
[400656069,1767769853459,-289.06162,0.00039,120]
[400656070,1767769853471,-890.463938,0.00039,120]
[400656071,1767769853481,-289.06162,0.00039,120]
[400656072,1767769853493,-890.463938,0.00039,120]
[400656073,1767769853503,-289.06162,0.00039,120]
[400656074,1767769853512,-422.686257,0.00039,120]
[400656075,1767769853522,-422.686257,0.00039,120]
[400656076,1767769853532,-422.686257,0.00039,120]
[400656077,1767769853541,-422.686257,0.00039,120]
[400656078,1767769853552,-151.0,0.00039,90]
[400656079,1767769853561,-432.316647,0.00039,120]
[400656080,1767769853571,-432.316647,0.00039,120]
[400656081,1767769853581,-432.316647,0.00039,120]
[400656082,1767769853591,-303.816362,0.00039,120]
[400656083,1767769853600,-432.316647,0.00039,120]
[400656084,1767769853611,-303.816362,0.00039,120]
[400656085,1767769853620,-151.0,0.00039,120]
[400656086,1767769853630,-151.0,0.00039,120]